Cogmind - Beta 14 @@@ ROGUE MODE // 2024.12.09 @ 21:24:55 Player: harambe Result: Destroyed by G-34 Mercenary with Small Laser Performance ------------- Evolutions (0) 0 Regions Visited (2) 400 Robots Destroyed (32) 160 Value Destroyed (761) 761 Prototype IDs (2) 40 Alien Tech Used (0) 0 Bonus (21) 21 TOTAL SCORE: 1382 Bonus ------- Follower Combat Kills 21 Cogmind --------- Core Integrity 0/250 Matter 277/300 Energy 124/125 System Corruption 0% Temperature Warm (126) Movement Walking (190) Ox1 Location -10/Mines Parts ------- > --- POWER (1) -------- Light Ion Engine > --- PROPULSION (2) --- Aluminum Leg Aluminum Leg > --- UTILITY (2) ------ Large Storage Unit Signal Interpreter > --- WEAPON (2) ------- Particle Gun Light Assault Rifle > --- INVENTORY (15) --- Ion Engine Light Ion Engine Light Nuclear Core Aluminum Leg Aluminum Leg Hover Unit Hover Unit Hover Unit Heat Sink Heat Sink Terrain Scanner Tractor Beam Assault Rifle Grenade Launcher Ripper Peak State ------------ > --- POWER ------------ Light Ion Engine > --- PROPULSION ------- Aluminum Leg Aluminum Leg > --- UTILITY ---------- Large Storage Unit Signal Interpreter > --- WEAPON ----------- Particle Gun Ripper > --- INVENTORY -------- Ion Engine Light Ion Engine Light Nuclear Core Aluminum Leg Aluminum Leg Hover Unit Hover Unit Hover Unit Heat Sink Heat Sink Terrain Scanner Tractor Beam Assault Rifle Light Assault Rifle Grenade Launcher [Rating: 12] Favorites ----------- Power Light Ion Engine Engine Light Ion Engine Propulsion Aluminum Leg Leg Aluminum Leg Utility Large Storage Unit Device Seismic Detector Storage Large Storage Unit Processor Signal Interpreter Weapon Light Assault Rifle Energy Gun Particle Gun Ballistic Gun Light Assault Rifle Ballistic Cannon Light Cannon Slashing Weapon Ripper Build | -11 -10 -10 ------- Run | Yrd Mat Min Slots Evolved . | . . . Power . | . . . Propulsion . | . . . Utility . | . . . Weapon . | . . . Parts Attached 28 | 1 16 11 Power 3 | . 3 . Engine 3 | . 3 . Core . | . . . Reactor . | . . . Propulsion 7 | . 4 3 Treads . | . . . Leg 7 | . 4 3 Wheel . | . . . Hover . | . . . Flight . | . . . Utility 3 | . 2 1 Device 1 | . 1 . Storage 1 | . 1 . Processor 1 | . . 1 Hackware . | . . . Protection . | . . . Artifact . | . . . Weapon 15 | 1 7 7 Energy Gun 4 | 1 2 1 Energy Cannon . | . . . Ballistic Gun 9 | . 5 4 Ballistic Cannon 1 | . . 1 Launcher . | . . . Special Weapon . | . . . Impact Weapon . | . . . Slashing Weapon 1 | . . 1 Piercing Weapon . | . . . Special Melee Weapon . | . . . Unidentified Prototypes . | . . . Parts Lost 6 | . 1 5 Power . | . . . Propulsion 3 | . 1 2 Utility 1 | . . 1 Weapon 2 | . . 2 Highest Loss Streak 2 | . 1 2 To Critical Strikes . | . . . Average Slot Usage (%) 98 | . 98 99 Engine 14 | . 14 14 Leg 27 | . 28 27 Device 7 | . 12 1 Storage 14 | . 14 14 Processor 5 | . . 12 Energy Gun 11 | . 15 6 Ballistic Gun 12 | . 12 12 Ballistic Cannon 3 | . . 9 Peak Build Rating 12 | 6 9 12 Average Rating 8 | 6 7 8 On Entrance 7 | 6 6 9 Naked Turns . | . . . Heaviest Build 29 | 11 29 29 Greatest Support 20 | 20 20 20 Greatest Overweight (x) 1 | . 1 1 Average Overweight (x) . | . . 1 Largest Inventory Capacity 15 | 8 15 15 Average Capacity 12 | 8 10 15 Most Carried 15 | 6 15 15 Average Carried 11 | 6 9 14 Final Capacity 15 | 8 15 15 Final Carried 15 | 6 15 15 Class Distribution -------------------- 95% | Mutant 4% | Scavenger-Mutant Dominant Class ---------------- Mutant | -10/Materials Mutant | -10/Mines Resources | -11 -10 -10 ----------- Run | Yrd Mat Min Matter Collected 653 | 210 228 215 Remotely . | . . . Salvage Created 774 | 20 437 317 Parts 59 | . 42 17 Haulers Intercepted . | . . . Recyclers Shooed . | . . . Parts Field Recycled . | . . . Retrieved Matter . | . . . Parts Self-Destructed . | . . . Prevented . | . . . Kills | -11 -10 -10 ------- Run | Yrd Mat Min Combat Hostiles Destroyed 28 | . 16 12 Guns 23 | . 16 7 Cannons 5 | . . 5 Classes Destroyed 5 | 1 4 . Worker 2 | . 1 1 Tunneler 1 | 1 . . Watcher 1 | . 1 . Swarmer 12 | . 9 3 Grunt 16 | . 7 9 Best Kill Streak 4 | 1 3 4 Combat Bots Only 4 | . 3 4 Max Kills in Single Turn 1 | 1 1 1 Gunslinging . | . . . Exploded . | . . . Melee . | . . . Uniques/NPCs Destroyed . | . . . Combat | -11 -10 -10 -------- Run | Yrd Mat Min Hostile Shots Fired 155 | . 73 82 Missed 29 | . 17 12 Damage Taken 1449 | . 614 835 Core 251 | . 159 92 Absorbed by Shields . | . . . Core Remaining (%) 100 | 100 . . Volleys Fired 95 | 4 46 45 Largest 2 | 2 2 2 Hottest 100 | 80 85 100 Shots Fired 190 | 8 92 90 Gun 162 | 8 92 62 Cannon 28 | . . 28 Launcher . | . . . Special . | . . . Kinetic 111 | . 43 68 Thermal 76 | 5 49 22 Explosive . | . . . Electromagnetic 3 | 3 . . Robot Hit Streak 15 | 5 10 15 Robot Miss Streak 3 | 2 3 3 Penetration Max . | . . . Secondary Targets 2 | . 1 1 Max Gunslinging Chain 1 | . 1 1 Shots Hit Robots 124 | 5 55 64 Core Hits 52 | 1 28 23 Critical Kills . | . . . Critical Parts Destroyed . | . . . Critical Strikes 1 | . . 1 Burn 1 | . . 1 Melee Attacks 7 | . . 7 Impact . | . . . Slashing 7 | . . 7 Piercing . | . . . Sneak Attacks 1 | . . 1 Combat Hostiles . | . . . Follow-up Attacks . | . . . Damage Inflicted 1650 | 61 617 972 Guns 1147 | 61 617 469 Cannons 401 | . . 401 Explosions . | . . . Melee 102 | . . 102 Ramming . | . . . Kinetic 888 | . 282 606 Thermal 634 | 35 335 264 Explosive . | . . . Electromagnetic 26 | 26 . . Impact . | . . . Slashing 102 | . . 102 Piercing . | . . . Highest Corruption . | . . . Average Corruption . | . . . Corruption Purged . | . . . Corruption Blocked . | . . . Overload Shots . | . . . Overflow Damage 44 | . . 44 Projectiles . | . . . Explosions . | . . . Melee 44 | . . 44 Knockbacks 2 | . . 2 Impact . | . . . Kinetic 2 | . . 2 Secondary . | . . . Self-Inflicted Damage . | . . . Shots . | . . . Rammed . | . . . Targets Rammed . | . . . Kicked . | . . . Crushed . | . . . Highest Temperature 333 | 54 160 333 Average Temperature 81 | 32 52 113 Received Heat Transfer 684 | . 267 417 Siege Activations . | . . . Robots Corrupted . | . . . Combat Hostiles . | . . . Parts Fried . | . . . Impact Corruptions . | . . . Robots Melted . | . . . Combat Hostiles . | . . . Parts Melted 3 | . . 3 Heat Transferred 1489 | 75 748 666 Parts Sabotaged . | . . . Parts Stolen . | . . . Parts Stripped . | . . . Power Chain Reactions . | . . . Alert | -11 -10 -10 ------- Run | Yrd Mat Min Peak Influence 337 | 5 337 260 Initial 82 | . 3 82 Average 164 | 3 187 140 Maximum Alert Level 1 | . 1 1 Low Security (%) 62 | 100 50 77 Level 1 37 | . 49 22 Level 2 . | . . . Level 3 . | . . . Level 4 . | . . . Level 5 . | . . . High Security . | . . . Max Security . | . . . Squads Dispatched 4 | . 3 1 Investigation 2 | . 2 . Extermination . | . . . Reinforcement 1 | . 1 . Assault 1 | . . 1 Garrison . | . . . Intercept . | . . . Searches Triggered . | . . . Construction Impeded . | . . . Haulers Reinforced . | . . . Active Scanning Responses . | . . . Cargo Convoy Interrupts . | . . . Stealth | -11 -10 -10 --------- Run | Yrd Mat Min Distress Signals 1 | . 1 . Communications Jammed . | . . . Distress Signals . | . . . Times Spotted 49 | . 29 20 Peak Tracking Total 5 | . 5 4 Tactical Retreats 2 | . 1 1 Traps | -11 -10 -10 ------- Run | Yrd Mat Min Traps Triggered 2 | . 2 . Indirectly . | . . . Trap Hack Attempts . | . . . Triggered . | . . . Disarmed . | . . . Reprogrammed . | . . . Reused . | . . . Traps Extracted . | . . . Installed . | . . . Triggered . | . . . Machines | -11 -10 -10 ---------- Run | Yrd Mat Min Machines Disabled 2 | . 2 . Max in Single Turn 1 | . 1 . Machines Repaired . | . . . Machines Dismantled . | . . . Machines Sabotaged . | . . . Overloaded Fab Kills . | . . . Hacking | -11 -10 -10 --------- Run | Yrd Mat Min Machines Accessed 6 | . 6 . Terminals 6 | . 6 . Fabricators . | . . . Repair Stations . | . . . Recycling Units . | . . . Scanalyzers . | . . . Garrison Access . | . . . Total Hacks 14 | . 14 . Successful 6 | . 6 . Failed 8 | . 8 . Catastrophic 2 | . 2 . Database Lockouts . | . . . Manual 7 | . 7 . Terminals 14 | . 14 . Fabricators . | . . . Repair Stations . | . . . Recycling Units . | . . . Scanalyzers . | . . . Garrison Access . | . . . Terminal Hacks 6 | . 6 . Robot Analysis 3 | . 3 . Prototype ID Bank 1 | . 1 . Branch Access Points 1 | . 1 . Locate Traps 1 | . 1 . Fabricator Hacks . | . . . Repair Station Hacks . | . . . Recycling Unit Hacks . | . . . Scanalyzer . | . . . Garrison Access Hacks . | . . . Unauthorized Hacks . | . . . Terminals . | . . . Fabricators . | . . . Repair Stations . | . . . Recycling Units . | . . . Scanalyzers . | . . . Garrison Access . | . . . Data Cores Recovered . | . . . Used . | . . . Hacking Detections 5 | . 5 . Full Trace Events . | . . . Feedback Events . | . . . Feedback Blocked . | . . . Robot Schematics Acquired . | . . . Robots Built . | . . . Authchips . | . . . Time . | . . . Total Robot Build Rating . | . . . Part Schematics Acquired . | . . . Parts Built . | . . . Authchips . | . . . Time . | . . . Total Part Build Rating . | . . . Parts Repaired . | . . . Time . | . . . Parts Recycled . | . . . Recycled Matter . | . . . Retrieved Matter . | . . . Retrieved Components . | . . . Parts Scanalyzed . | . . . Part Schematics Acquired . | . . . Parts Damaged . | . . . Bothacking | -11 -10 -10 ------------ Run | Yrd Mat Min Used RIF Installer . | . . . Robots Hacked . | . . . Non-combat . | . . . Combat . | . . . Robot Hacks Applied . | . . . Relay Couplers Released . | . . . Fabnet Peak Effective % . | . . . Robots Rewired . | . . . Allies Hacked . | . . . Hacks Repelled . | . . . Allies | -11 -10 -10 -------- Run | Yrd Mat Min Total Allies 1 | . . 1 Largest Group 1 | . . 1 Highest-Rated Group 31 | . . 31 Highest-Rated Ally 31 | . . 31 Total Orders . | . . . Ally Attacks 11 | . . 11 Total Damage 129 | . . 129 Kills 3 | . . 3 Allies Corrupted . | . . . Allies Melted . | . . . Intel | -11 -10 -10 ------- Run | Yrd Mat Min Robot Analysis Total 3 | . 3 . Derelict Logs Recovered 1 | . . 1 Drone Launches . | . . . Drone Recoveries . | . . . Exploration | -11 -10 -10 ------------- Run | Yrd Mat Min Turns Passed 1968 | 40 1093 835 Spaces Moved 973 | 23 630 320 Core . | . . . Treads . | . . . Legs 973 | 23 630 320 Wheels . | . . . Hover . | . . . Flight . | . . . Fastest Speed 120 | 120 120 190 Average Speed 157 | 120 141 190 Slowest Speed 190 | 120 190 190 Overloaded Moves . | . . . Propulsion Burnouts . | . . . Robots Hopped . | . . . Cave-ins Triggered . | . . . Exploration Rate (%) 47 | 3 87 51 Regions Visited 2 Branch Regions 1 Pre-discovered Areas . | . . . Known Exits Taken 1 | . 1 . Unknown Exits Taken 1 | 1 . . Scrap Searched 1 | . . 1 Spaces Dug . | . . . Terrain Destroyed . | . . . Melee . | . . . Projectile . | . . . AOE . | . . . Terrain Rammed . | . . . Walls Destroyed . | . . . Machines Disabled . | . . . Actions | -11 -10 -10 --------- Run | Yrd Mat Min Total 1241 | 27 754 460 Wait 82 | . 21 61 Move 971 | 22 629 320 Hop . | . . . Pick Up 29 | . 20 9 Fast Attach 1 | . 1 . Attach 6 | . 1 5 Detach . | . . . Swap 21 | 1 14 6 Drop 29 | . 22 7 Fire 95 | 4 46 45 Melee 7 | . . 7 Ram . | . . . Kick . | . . . Crush . | . . . Escape Stasis . | . . . Rewire . | . . . Trap . | . . . Miscellaneous . | . . . Route ------- -11/Scrapyard -10/Materials (discovered 3 exits: [*Mat x2] / *Min) -10/Mines History --------- Turn | Location | Event 1 | -11/Scrapyard | Discovered new exit (range 3) 41 | -11/Scrapyard | Entered Materials 310 | -10/Materials | Build established: Mutant 367 | -10/Materials | Identified exit to Mines 523 | -10/Materials | Core integrity fell below 50% 615 | -10/Materials | Discovered new exit (range 16) 728 | -10/Materials | Discovered new exit (range 16) 1134 | -10/Materials | Entered Mines 1135 | -10/Mines | Met a Derelict testing a Signal Generator 1372 | -10/Mines | Core integrity fell below 20% 1807 | -10/Mines | A weapon hastily lodged in a ceiling crevice suddenly fell to the ground 1857 | -10/Mines | Learned location of 1 exit from Materials 1929 | -10/Mines | Excavation squad dispatched 1929 | -10/Mines | A large section of the Mines collapsed 1969 | -10/Mines | Destroyed by G-34 Mercenary with Small Laser Last Messages --------------- 01894_ Acquired Heat Sink. 01895_ Acquired 38 matter. 01929_ K-01 Serf crushed by falling debris. 01929_ K-01 Serf system corrupted by crushing effect. 01929_ 38 Matter crushed. 01929_ Sml. Laser crushed. 01929_ M-13 Machinist crushed by falling debris. 01929_ M-13 Machinist system corrupted by crushing effect. 01929_ M-13 Machinist destroyed. 01929_ ALERT: Suspicious cave-in, suspected derelict activity in mines. Dispatching escorted excavation squad. 01929_ K-01 Serf collects debris. 01932_ Sneak attack on K-01 Serf. 01932_ Destroyed Lgt. Ion Engine. 01935_ Destroyed Wheel. 01935_ K-01 Serf destroyed. 01961_ T-07 Excavator is excavating. 01965_ G-34 Mercenary destroyed. 01967_ T-07 Excavator is excavating. 01968_ G-34 Mercenary suffers critical hit (Burn). Map ----- +----------------------------------------------------+ | | | | | | | | | | | | | | | | | | | | | | | | | | | | | | | | | | | | | ???????????????????????????????????????????????? | | ??????????????????????????????####?????????????? | | ???????????????????????####??## ##????????????? | | ????####??????????????## ##?# ##???????????? | | ??### ##?????????????# ####### ###?????????? | | ?## #?????????????# ## # ##????????? | | ?# & ##???????????#### ###### #########? | | ?# ##????????### # @###### # #? | | ?# #????????# # t%= #?## ## #? | | ?## # #?####### ;*gg#??## #### """ #? | | ??## ## ## ## #???#[#### """ #? | | ???# #?# ### ####### [ ###t#???# %% """ #? | | ???# #??##?# #?????## ##?# #???###### #? | | ???# #?????# #??????#t##??# #????????#########? | | ???# ####??# #??????# #???# ?????????????????? | | #?## ##?# #??##### #??? ?????????????????? | | #?# """ ### #??# #??? ?????????????????? | | ### """ ## #??# #####??? ?????????????????? | | ## """ ### #??# #??????? ?????????????????? | | # ##?# #??# #??????? ?????????????????? | | ##??# #??# #??????? ????????????????? | | ###?### #### #??????? ????????????????? | | #######???#%* #??????? ????????????????? | | #??????# ########??????? ????????????????? | | #??????#%#?????????????? ????????????????? | | "" #??????#%#??????#####??? ????????????????? | | "" ######## ##### #??????????????????????? | | "" [= #????????????????????????????? | | #????????????????????????????? | | #### ### #######????????????????????????????? | | ####??# #?# #??????????????????????????????????? | | ??????# #?# #??????????????????????????????????? | +----------------------------------------------------+ Best States ------------- Heat Dissipation 25 Energy Generation 10 Energy Capacity 250 Matter Stores 300 Matter Capacity 300 Sight Range 16 Terrain Scan Density 10 Evasion (%) 55 Item Schematics ----------------- None Robot Schematics ------------------ None Fabricated ------------ Nothing Alien Tech Used ----------------- None Achievements -------------- None Challenges ------------ None Game ------ Seed AngularTransdimensionalPower Manual? 0 Play Time 00:32:04 Cumulative 127.3 hours Start 2024.12.09 @ 20:46:06 End 2024.12.09 @ 21:24:55 Sessions 1 Manual Loads 0 Difficulty Rogue Special Mode None Game No. 69 Rogue 69 Adventurer 0 Explorer 0 Win Type - Total 1 Types 1/0/0/0/0/0/0/0/0 Lore% 26 Gallery% 48 Achievement% 38 Wizard Run 0 Options --------- Layout 0 ASCII 0 Keyboard 0 Movement Mouse Keybinds 0 Fullscreen 1 Font 18/SmallcapsGlow Map View 76x50 Zoom Use 0% Tactical HUD 1 Map Filters NONE Filters NONE Steam 1 RUN: 830af669-348d-48a2-b7e1-e797e09b1d4b